{"text_format":"3","workbook":"xlsx","n_sheets":1,"sheets":["Výkaz o zisku a strate"],"not_rendered":{"defined_names":2},"read":"whole","date_system":"1900"}

{"sheet":"Výkaz o zisku a strate","index":0,"n_rows":60,"n_cols":10,"rows_kept":60,"merged":[[9,1,9,9],[16,1,16,9],[24,1,24,9],[38,1,38,9],[43,1,43,9],[56,1,56,9]]}
[null,"Zisk a strata Vyhlásenie"]
[]
[{"$nulls":3},"PREDCHÁDZAJÚCE OBDOBIE","ROZPOČET ","AKTUÁLNE OBDOBIE ",null,"AKTUÁLNE OBDOBIE\nAKO % PREDAJA ","% ZMENY V POROVNANÍ\nS PREDCHÁDZAJÚCIM OBDOBÍM ","% ZMENY V POROVNANÍ\nS ROZPOČTOM "]
[null,"Príjmy z predaja"]
[null,"Produkt/Služba 1",null,40,50,45,null,{"$f":"IFERROR(PríjmyZPredaja[[#This Row],[Aktuálne obdobie]]/SUBTOTAL(109,PríjmyZPredaja[Aktuálne obdobie]),0)","v":{"v":1,"d":"100.0%"}},{"$f":"IFERROR(PríjmyZPredaja[[#This Row],[Aktuálne obdobie]]/PríjmyZPredaja[[#This Row],[Predchádzajúce obdobie]]-1,0)","v":{"v":0.125,"d":"12.5%"}},{"$f":"IFERROR(PríjmyZPredaja[[#This Row],[Aktuálne obdobie]]/PríjmyZPredaja[[#This Row],[Rozpočet]]-1,0)","v":{"v":-0.09999999999999998,"d":"-10.0%"}}]
[null,"Produkt/Služba 2",{"$nulls":5},{"$f":"IFERROR(PríjmyZPredaja[[#This Row],[Aktuálne obdobie]]/SUBTOTAL(109,PríjmyZPredaja[Aktuálne obdobie]),0)","v":0},{"$f":"IFERROR(PríjmyZPredaja[[#This Row],[Aktuálne obdobie]]/PríjmyZPredaja[[#This Row],[Predchádzajúce obdobie]]-1,0)","v":0},{"$f":"IFERROR(PríjmyZPredaja[[#This Row],[Aktuálne obdobie]]/PríjmyZPredaja[[#This Row],[Rozpočet]]-1,0)","v":0}]
[null,"Produkt/Služba 3",{"$nulls":5},{"$f":"IFERROR(PríjmyZPredaja[[#This Row],[Aktuálne obdobie]]/SUBTOTAL(109,PríjmyZPredaja[Aktuálne obdobie]),0)","v":0},{"$f":"IFERROR(PríjmyZPredaja[[#This Row],[Aktuálne obdobie]]/PríjmyZPredaja[[#This Row],[Predchádzajúce obdobie]]-1,0)","v":0},{"$f":"IFERROR(PríjmyZPredaja[[#This Row],[Aktuálne obdobie]]/PríjmyZPredaja[[#This Row],[Rozpočet]]-1,0)","v":0}]
[null,"Produkt/Služba 4",{"$nulls":5},{"$f":"IFERROR(PríjmyZPredaja[[#This Row],[Aktuálne obdobie]]/SUBTOTAL(109,PríjmyZPredaja[Aktuálne obdobie]),0)","v":0},{"$f":"IFERROR(PríjmyZPredaja[[#This Row],[Aktuálne obdobie]]/PríjmyZPredaja[[#This Row],[Predchádzajúce obdobie]]-1,0)","v":0},{"$f":"IFERROR(PríjmyZPredaja[[#This Row],[Aktuálne obdobie]]/PríjmyZPredaja[[#This Row],[Rozpočet]]-1,0)","v":0}]
[null,"Celková hodnota",null,{"$f":"SUBTOTAL(109,PríjmyZPredaja[Predchádzajúce obdobie])","v":40},{"$f":"SUBTOTAL(109,PríjmyZPredaja[Rozpočet])","v":50},{"$f":"SUBTOTAL(109,PríjmyZPredaja[Aktuálne obdobie])","v":45},null,{"$f":"IFERROR(PríjmyZPredaja[[#Totals],[Aktuálne obdobie]]/PríjmyZPredaja[[#Totals],[Aktuálne obdobie]],0)","v":{"v":1,"d":"100.0%"}},{"$f":"IFERROR(PríjmyZPredaja[[#Totals],[Aktuálne obdobie]]/PríjmyZPredaja[[#Totals],[Predchádzajúce obdobie]]-1,0)","v":{"v":0.125,"d":"12.5%"}},{"$f":"IFERROR(PríjmyZPredaja[[#Totals],[Aktuálne obdobie]]/PríjmyZPredaja[[#Totals],[Rozpočet]]-1,0)","v":{"v":-0.09999999999999998,"d":"-10.0%"}}]
[]
[null,"Náklady na predaj"]
[null,"Produkt/Služba 1",null,null,2,3,null,{"$f":"IFERROR(NákladyNaPredaj[[#This Row],[Aktuálne obdobie]]/SUBTOTAL(109,PríjmyZPredaja[Aktuálne obdobie]),0)","v":{"v":0.06666666666666667,"d":"6.7%"}},{"$f":"IFERROR(NákladyNaPredaj[[#This Row],[Aktuálne obdobie]]/NákladyNaPredaj[[#This Row],[Predchádzajúce obdobie]]-1,0)","v":0},{"$f":"IFERROR(NákladyNaPredaj[[#This Row],[Aktuálne obdobie]]/NákladyNaPredaj[[#This Row],[Rozpočet]]-1,0)","v":{"v":0.5,"d":"50.0%"}}]
[null,"Produkt/Služba 2",null,null,5,3,null,{"$f":"IFERROR(NákladyNaPredaj[[#This Row],[Aktuálne obdobie]]/SUBTOTAL(109,PríjmyZPredaja[Aktuálne obdobie]),0)","v":{"v":0.06666666666666667,"d":"6.7%"}},{"$f":"IFERROR(NákladyNaPredaj[[#This Row],[Aktuálne obdobie]]/NákladyNaPredaj[[#This Row],[Predchádzajúce obdobie]]-1,0)","v":0},{"$f":"IFERROR(NákladyNaPredaj[[#This Row],[Aktuálne obdobie]]/NákladyNaPredaj[[#This Row],[Rozpočet]]-1,0)","v":{"v":-0.4,"d":"-40.0%"}}]
[null,"Produkt/Služba 3",{"$nulls":3},1,null,{"$f":"IFERROR(NákladyNaPredaj[[#This Row],[Aktuálne obdobie]]/SUBTOTAL(109,PríjmyZPredaja[Aktuálne obdobie]),0)","v":{"v":0.022222222222222223,"d":"2.2%"}},{"$f":"IFERROR(NákladyNaPredaj[[#This Row],[Aktuálne obdobie]]/NákladyNaPredaj[[#This Row],[Predchádzajúce obdobie]]-1,0)","v":0},{"$f":"IFERROR(NákladyNaPredaj[[#This Row],[Aktuálne obdobie]]/NákladyNaPredaj[[#This Row],[Rozpočet]]-1,0)","v":0}]
[null,"Produkt/Služba 4",{"$nulls":5},{"$f":"IFERROR(NákladyNaPredaj[[#This Row],[Aktuálne obdobie]]/SUBTOTAL(109,PríjmyZPredaja[Aktuálne obdobie]),0)","v":0},{"$f":"IFERROR(NákladyNaPredaj[[#This Row],[Aktuálne obdobie]]/NákladyNaPredaj[[#This Row],[Predchádzajúce obdobie]]-1,0)","v":0},{"$f":"IFERROR(NákladyNaPredaj[[#This Row],[Aktuálne obdobie]]/NákladyNaPredaj[[#This Row],[Rozpočet]]-1,0)","v":0}]
[null,"Celková hodnota",null,{"$f":"SUBTOTAL(109,NákladyNaPredaj[Predchádzajúce obdobie])","v":0},{"$f":"SUBTOTAL(109,NákladyNaPredaj[Rozpočet])","v":7},{"$f":"SUBTOTAL(109,NákladyNaPredaj[Aktuálne obdobie])","v":7},null,{"$f":"IFERROR(NákladyNaPredaj[[#Totals],[Aktuálne obdobie]]/SUBTOTAL(109,PríjmyZPredaja[Aktuálne obdobie]),0)","v":{"v":0.15555555555555556,"d":"15.6%"}},{"$f":"IFERROR(NákladyNaPredaj[[#Totals],[Aktuálne obdobie]]/NákladyNaPredaj[[#Totals],[Predchádzajúce obdobie]]-1,0)","v":0},{"$f":"IFERROR(NákladyNaPredaj[[#Totals],[Aktuálne obdobie]]/NákladyNaPredaj[[#Totals],[Rozpočet]]-1,0)","v":0}]
[]
[null,"Hrubý zisk",null,{"$f":"SUM(PríjmyZPredaja[Predchádzajúce obdobie])-SUM(NákladyNaPredaj[Predchádzajúce obdobie])","v":40},{"$f":"SUM(PríjmyZPredaja[Rozpočet])-SUM(NákladyNaPredaj[Rozpočet])","v":43},{"$f":"SUM(PríjmyZPredaja[Aktuálne obdobie])-SUM(NákladyNaPredaj[Aktuálne obdobie])","v":38},null,{"$f":"IFERROR(F18/SUBTOTAL(109,PríjmyZPredaja[Aktuálne obdobie]),0)","v":{"v":0.8444444444444444,"d":"84.4%"}},{"$f":"IFERROR(F18/D18-1,0)","v":{"v":-0.050000000000000044,"d":"-5.0%"}},{"$f":"IFERROR(F18/E18-1,0)","v":{"v":-0.11627906976744184,"d":"-11.6%"}}]
[]
[null,"Prevádzkové náklady: Predaj a marketing"]
[null,"Reklama",null,null,22,19,null,{"$f":"IFERROR(PredajAMarketing[[#This Row],[Aktuálne obdobie]]/SUBTOTAL(109,PríjmyZPredaja[Aktuálne obdobie]),0)","v":{"v":0.4222222222222222,"d":"42.2%"}},{"$f":"IFERROR(PredajAMarketing[[#This Row],[Aktuálne obdobie]]/PredajAMarketing[[#This Row],[Predchádzajúce obdobie]]-1,0)","v":0},{"$f":"IFERROR(PredajAMarketing[[#This Row],[Aktuálne obdobie]]/PredajAMarketing[[#This Row],[Rozpočet]]-1,0)","v":{"v":-0.13636363636363635,"d":"-13.6%"}}]
[null,"Priamy marketing",{"$nulls":5},{"$f":"IFERROR(PredajAMarketing[[#This Row],[Aktuálne obdobie]]/SUBTOTAL(109,PríjmyZPredaja[Aktuálne obdobie]),0)","v":0},{"$f":"IFERROR(PredajAMarketing[[#This Row],[Aktuálne obdobie]]/PredajAMarketing[[#This Row],[Predchádzajúce obdobie]]-1,0)","v":0},{"$f":"IFERROR(PredajAMarketing[[#This Row],[Aktuálne obdobie]]/PredajAMarketing[[#This Row],[Rozpočet]]-1,0)","v":0}]
[null,"Iné náklady (špecifikované)",{"$nulls":5},{"$f":"IFERROR(PredajAMarketing[[#This Row],[Aktuálne obdobie]]/SUBTOTAL(109,PríjmyZPredaja[Aktuálne obdobie]),0)","v":0},{"$f":"IFERROR(PredajAMarketing[[#This Row],[Aktuálne obdobie]]/PredajAMarketing[[#This Row],[Predchádzajúce obdobie]]-1,0)","v":0},{"$f":"IFERROR(PredajAMarketing[[#This Row],[Aktuálne obdobie]]/PredajAMarketing[[#This Row],[Rozpočet]]-1,0)","v":0}]
[null,"Celková hodnota",null,{"$f":"SUBTOTAL(109,PredajAMarketing[Predchádzajúce obdobie])","v":0},{"$f":"SUBTOTAL(109,PredajAMarketing[Rozpočet])","v":22},{"$f":"SUBTOTAL(109,PredajAMarketing[Aktuálne obdobie])","v":19},null,{"$f":"IFERROR(PredajAMarketing[[#Totals],[Aktuálne obdobie]]/SUBTOTAL(109,PríjmyZPredaja[Aktuálne obdobie]),0)","v":{"v":0.4222222222222222,"d":"42.2%"}},{"$f":"IFERROR(PredajAMarketing[[#Totals],[Aktuálne obdobie]]/PredajAMarketing[[#Totals],[Predchádzajúce obdobie]]-1,0)","v":0},{"$f":"IFERROR(PredajAMarketing[[#Totals],[Aktuálne obdobie]]/PredajAMarketing[[#Totals],[Rozpočet]]-1,0)","v":{"v":-0.13636363636363635,"d":"-13.6%"}}]
[]
[null,"Prevádzkové náklady: Všeobecné a administratíva"]
[null,"Mzda",null,null,56,51,null,{"$f":"IFERROR(VšeobecnéAAdministratívne[[#This Row],[Aktuálne obdobie]]/SUBTOTAL(109,PríjmyZPredaja[Aktuálne obdobie]),0)","v":{"v":1.1333333333333333,"d":"113.3%"}},{"$f":"IFERROR(VšeobecnéAAdministratívne[[#This Row],[Aktuálne obdobie]]/VšeobecnéAAdministratívne[[#This Row],[Predchádzajúce obdobie]]-1,0)","v":0},{"$f":"IFERROR(VšeobecnéAAdministratívne[[#This Row],[Aktuálne obdobie]]/VšeobecnéAAdministratívne[[#This Row],[Rozpočet]]-1,0)","v":{"v":-0.0892857142857143,"d":"-8.9%"}}]
[null,"Dodávané služby",{"$nulls":5},{"$f":"IFERROR(VšeobecnéAAdministratívne[[#This Row],[Aktuálne obdobie]]/SUBTOTAL(109,PríjmyZPredaja[Aktuálne obdobie]),0)","v":0},{"$f":"IFERROR(VšeobecnéAAdministratívne[[#This Row],[Aktuálne obdobie]]/VšeobecnéAAdministratívne[[#This Row],[Predchádzajúce obdobie]]-1,0)","v":0},{"$f":"IFERROR(VšeobecnéAAdministratívne[[#This Row],[Aktuálne obdobie]]/VšeobecnéAAdministratívne[[#This Row],[Rozpočet]]-1,0)","v":0}]
[null,"Zásoby",{"$nulls":5},{"$f":"IFERROR(VšeobecnéAAdministratívne[[#This Row],[Aktuálne obdobie]]/SUBTOTAL(109,PríjmyZPredaja[Aktuálne obdobie]),0)","v":0},{"$f":"IFERROR(VšeobecnéAAdministratívne[[#This Row],[Aktuálne obdobie]]/VšeobecnéAAdministratívne[[#This Row],[Predchádzajúce obdobie]]-1,0)","v":0},{"$f":"IFERROR(VšeobecnéAAdministratívne[[#This Row],[Aktuálne obdobie]]/VšeobecnéAAdministratívne[[#This Row],[Rozpočet]]-1,0)","v":0}]
[null,"Jedlá a zábava",{"$nulls":5},{"$f":"IFERROR(VšeobecnéAAdministratívne[[#This Row],[Aktuálne obdobie]]/SUBTOTAL(109,PríjmyZPredaja[Aktuálne obdobie]),0)","v":0},{"$f":"IFERROR(VšeobecnéAAdministratívne[[#This Row],[Aktuálne obdobie]]/VšeobecnéAAdministratívne[[#This Row],[Predchádzajúce obdobie]]-1,0)","v":0},{"$f":"IFERROR(VšeobecnéAAdministratívne[[#This Row],[Aktuálne obdobie]]/VšeobecnéAAdministratívne[[#This Row],[Rozpočet]]-1,0)","v":0}]
[null,"Nájomné",{"$nulls":5},{"$f":"IFERROR(VšeobecnéAAdministratívne[[#This Row],[Aktuálne obdobie]]/SUBTOTAL(109,PríjmyZPredaja[Aktuálne obdobie]),0)","v":0},{"$f":"IFERROR(VšeobecnéAAdministratívne[[#This Row],[Aktuálne obdobie]]/VšeobecnéAAdministratívne[[#This Row],[Predchádzajúce obdobie]]-1,0)","v":0},{"$f":"IFERROR(VšeobecnéAAdministratívne[[#This Row],[Aktuálne obdobie]]/VšeobecnéAAdministratívne[[#This Row],[Rozpočet]]-1,0)","v":0}]
[null,"Telefón",{"$nulls":5},{"$f":"IFERROR(VšeobecnéAAdministratívne[[#This Row],[Aktuálne obdobie]]/SUBTOTAL(109,PríjmyZPredaja[Aktuálne obdobie]),0)","v":0},{"$f":"IFERROR(VšeobecnéAAdministratívne[[#This Row],[Aktuálne obdobie]]/VšeobecnéAAdministratívne[[#This Row],[Predchádzajúce obdobie]]-1,0)","v":0},{"$f":"IFERROR(VšeobecnéAAdministratívne[[#This Row],[Aktuálne obdobie]]/VšeobecnéAAdministratívne[[#This Row],[Rozpočet]]-1,0)","v":0}]
[null,"Energie",{"$nulls":5},{"$f":"IFERROR(VšeobecnéAAdministratívne[[#This Row],[Aktuálne obdobie]]/SUBTOTAL(109,PríjmyZPredaja[Aktuálne obdobie]),0)","v":0},{"$f":"IFERROR(VšeobecnéAAdministratívne[[#This Row],[Aktuálne obdobie]]/VšeobecnéAAdministratívne[[#This Row],[Predchádzajúce obdobie]]-1,0)","v":0},{"$f":"IFERROR(VšeobecnéAAdministratívne[[#This Row],[Aktuálne obdobie]]/VšeobecnéAAdministratívne[[#This Row],[Rozpočet]]-1,0)","v":0}]
[null,"Odpisy",{"$nulls":5},{"$f":"IFERROR(VšeobecnéAAdministratívne[[#This Row],[Aktuálne obdobie]]/SUBTOTAL(109,PríjmyZPredaja[Aktuálne obdobie]),0)","v":0},{"$f":"IFERROR(VšeobecnéAAdministratívne[[#This Row],[Aktuálne obdobie]]/VšeobecnéAAdministratívne[[#This Row],[Predchádzajúce obdobie]]-1,0)","v":0},{"$f":"IFERROR(VšeobecnéAAdministratívne[[#This Row],[Aktuálne obdobie]]/VšeobecnéAAdministratívne[[#This Row],[Rozpočet]]-1,0)","v":0}]
[null,"Poistenie",{"$nulls":5},{"$f":"IFERROR(VšeobecnéAAdministratívne[[#This Row],[Aktuálne obdobie]]/SUBTOTAL(109,PríjmyZPredaja[Aktuálne obdobie]),0)","v":0},{"$f":"IFERROR(VšeobecnéAAdministratívne[[#This Row],[Aktuálne obdobie]]/VšeobecnéAAdministratívne[[#This Row],[Predchádzajúce obdobie]]-1,0)","v":0},{"$f":"IFERROR(VšeobecnéAAdministratívne[[#This Row],[Aktuálne obdobie]]/VšeobecnéAAdministratívne[[#This Row],[Rozpočet]]-1,0)","v":0}]
[null,"Opravy a údržba",{"$nulls":5},{"$f":"IFERROR(VšeobecnéAAdministratívne[[#This Row],[Aktuálne obdobie]]/SUBTOTAL(109,PríjmyZPredaja[Aktuálne obdobie]),0)","v":0},{"$f":"IFERROR(VšeobecnéAAdministratívne[[#This Row],[Aktuálne obdobie]]/VšeobecnéAAdministratívne[[#This Row],[Predchádzajúce obdobie]]-1,0)","v":0},{"$f":"IFERROR(VšeobecnéAAdministratívne[[#This Row],[Aktuálne obdobie]]/VšeobecnéAAdministratívne[[#This Row],[Rozpočet]]-1,0)","v":0}]
[null,"Iné náklady (špecifikované)",{"$nulls":5},{"$f":"IFERROR(VšeobecnéAAdministratívne[[#This Row],[Aktuálne obdobie]]/SUBTOTAL(109,PríjmyZPredaja[Aktuálne obdobie]),0)","v":0},{"$f":"IFERROR(VšeobecnéAAdministratívne[[#This Row],[Aktuálne obdobie]]/VšeobecnéAAdministratívne[[#This Row],[Predchádzajúce obdobie]]-1,0)","v":0},{"$f":"IFERROR(VšeobecnéAAdministratívne[[#This Row],[Aktuálne obdobie]]/VšeobecnéAAdministratívne[[#This Row],[Rozpočet]]-1,0)","v":0}]
[null,"Celková hodnota",null,{"$f":"SUBTOTAL(109,VšeobecnéAAdministratívne[Predchádzajúce obdobie])","v":0},{"$f":"SUBTOTAL(109,VšeobecnéAAdministratívne[Rozpočet])","v":56},{"$f":"SUBTOTAL(109,VšeobecnéAAdministratívne[Aktuálne obdobie])","v":51},null,{"$f":"IFERROR(VšeobecnéAAdministratívne[[#Totals],[Aktuálne obdobie]]/SUBTOTAL(109,PríjmyZPredaja[Aktuálne obdobie]),0)","v":{"v":1.1333333333333333,"d":"113.3%"}},{"$f":"IFERROR(VšeobecnéAAdministratívne[[#Totals],[Aktuálne obdobie]]/VšeobecnéAAdministratívne[[#Totals],[Predchádzajúce obdobie]]-1,0)","v":0},{"$f":"IFERROR(VšeobecnéAAdministratívne[[#Totals],[Aktuálne obdobie]]/VšeobecnéAAdministratívne[[#Totals],[Rozpočet]]-1,0)","v":{"v":-0.0892857142857143,"d":"-8.9%"}}]
[]
[null,"Prevádzkové náklady: Iné"]
[null,"Iné prevádzkové náklady 1",null,null,10,null,null,{"$f":"IFERROR(InáKategóriaPrevádzkovýchVýdavkov[[#This Row],[Aktuálne obdobie]]/SUBTOTAL(109,PríjmyZPredaja[Aktuálne obdobie]),0)","v":0},{"$f":"IFERROR(InáKategóriaPrevádzkovýchVýdavkov[[#This Row],[Aktuálne obdobie]]/InáKategóriaPrevádzkovýchVýdavkov[[#This Row],[Predchádzajúce obdobie]]-1,0)","v":0},{"$f":"IFERROR(InáKategóriaPrevádzkovýchVýdavkov[[#This Row],[Aktuálne obdobie]]/InáKategóriaPrevádzkovýchVýdavkov[[#This Row],[Rozpočet]]-1,0)","v":{"v":-1,"d":"-100.0%"}}]
[null,"Iné prevádzkové náklady 2",{"$nulls":5},{"$f":"IFERROR(InáKategóriaPrevádzkovýchVýdavkov[[#This Row],[Aktuálne obdobie]]/SUBTOTAL(109,PríjmyZPredaja[Aktuálne obdobie]),0)","v":0},{"$f":"IFERROR(InáKategóriaPrevádzkovýchVýdavkov[[#This Row],[Aktuálne obdobie]]/InáKategóriaPrevádzkovýchVýdavkov[[#This Row],[Predchádzajúce obdobie]]-1,0)","v":0},{"$f":"IFERROR(InáKategóriaPrevádzkovýchVýdavkov[[#This Row],[Aktuálne obdobie]]/InáKategóriaPrevádzkovýchVýdavkov[[#This Row],[Rozpočet]]-1,0)","v":0}]
[null,"Celková hodnota",null,{"$f":"SUBTOTAL(109,InáKategóriaPrevádzkovýchVýdavkov[Predchádzajúce obdobie])","v":0},{"$f":"SUBTOTAL(109,InáKategóriaPrevádzkovýchVýdavkov[Rozpočet])","v":10},{"$f":"SUBTOTAL(109,InáKategóriaPrevádzkovýchVýdavkov[Aktuálne obdobie])","v":0},null,{"$f":"IFERROR(InáKategóriaPrevádzkovýchVýdavkov[[#Totals],[Aktuálne obdobie]]/SUBTOTAL(109,PríjmyZPredaja[Aktuálne obdobie]),0)","v":0},{"$f":"IFERROR(InáKategóriaPrevádzkovýchVýdavkov[[#Totals],[Aktuálne obdobie]]/InáKategóriaPrevádzkovýchVýdavkov[[#Totals],[Predchádzajúce obdobie]]-1,0)","v":0},{"$f":"IFERROR(InáKategóriaPrevádzkovýchVýdavkov[[#Totals],[Aktuálne obdobie]]/InáKategóriaPrevádzkovýchVýdavkov[[#Totals],[Rozpočet]]-1,0)","v":{"v":-1,"d":"-100.0%"}}]
[]
[null,"Celkové prevádzkové náklady",null,{"$f":"SUM(PredajAMarketing[Predchádzajúce obdobie],VšeobecnéAAdministratívne[Predchádzajúce obdobie],InáKategóriaPrevádzkovýchVýdavkov[Predchádzajúce obdobie])","v":0},{"$f":"SUM(PredajAMarketing[Rozpočet],VšeobecnéAAdministratívne[Rozpočet],InáKategóriaPrevádzkovýchVýdavkov[Rozpočet])","v":88},{"$f":"SUM(PredajAMarketing[Aktuálne obdobie],VšeobecnéAAdministratívne[Aktuálne obdobie],InáKategóriaPrevádzkovýchVýdavkov[Aktuálne obdobie])","v":70},null,{"$f":"IFERROR(F45/SUBTOTAL(109,PríjmyZPredaja[Aktuálne obdobie]),0)","v":{"v":1.5555555555555556,"d":"155.6%"}},{"$f":"IFERROR(F45/D45-1,0)","v":0},{"$f":"IFERROR(F45/E45-1,0)","v":{"v":-0.20454545454545459,"d":"-20.5%"}}]
[]
[null,"Prevádzkové príjmy",null,{"$f":"D18-D45","v":40},{"$f":"E18-E45","v":-45},{"$f":"F18-F45","v":-32},null,{"$f":"IFERROR(F47/SUBTOTAL(109,PríjmyZPredaja[Aktuálne obdobie]),0)","v":{"v":-0.7111111111111111,"d":"-71.1%"}},{"$f":"IFERROR(IF(D47=F47,0,IF(F47>D47,ABS((F47/D47)-1),IF(AND(F47<D47,D47<0),-((F47/D47)-1),(F47/D47)-1))),0)","v":{"v":-1.8,"d":"-180.0%"}},{"$f":"IFERROR(IF(E47=F47,0,IF(F47>E47,ABS((F47/E47)-1),IF(AND(F47<E47,E47<0),-((F47/E47)-1),(F47/E47)-1))),0)","v":{"v":0.28888888888888886,"d":"28.9%"}}]
[]
[null,"Iné príjmy",{"$nulls":5},{"$f":"IFERROR(F49/SUBTOTAL(109,PríjmyZPredaja[Aktuálne obdobie]),0)","v":0},{"$f":"IFERROR(F49/D49-1,0)","v":0},{"$f":"IFERROR(F49/E49-1,0)","v":0}]
[]
[null,"Dane"]
[null,"Dane z príjmu",null,null,32,30,null,{"$f":"IFERROR(Dane[[#This Row],[Aktuálne obdobie]]/SUBTOTAL(109,PríjmyZPredaja[Aktuálne obdobie]),0)","v":{"v":0.6666666666666666,"d":"66.7%"}},{"$f":"IFERROR(Dane[[#This Row],[Aktuálne obdobie]]/Dane[[#This Row],[Predchádzajúce obdobie]]-1,0)","v":0},{"$f":"IFERROR(Dane[[#This Row],[Aktuálne obdobie]]/Dane[[#This Row],[Rozpočet]]-1,0)","v":{"v":-0.0625,"d":"-6.3%"}}]
[null,"Odvody zo mzdy",{"$nulls":5},{"$f":"IFERROR(Dane[[#This Row],[Aktuálne obdobie]]/SUBTOTAL(109,PríjmyZPredaja[Aktuálne obdobie]),0)","v":0},{"$f":"IFERROR(Dane[[#This Row],[Aktuálne obdobie]]/Dane[[#This Row],[Predchádzajúce obdobie]]-1,0)","v":0},{"$f":"IFERROR(Dane[[#This Row],[Aktuálne obdobie]]/Dane[[#This Row],[Rozpočet]]-1,0)","v":0}]
[null,"Dane z nehnuteľností",{"$nulls":5},{"$f":"IFERROR(Dane[[#This Row],[Aktuálne obdobie]]/SUBTOTAL(109,PríjmyZPredaja[Aktuálne obdobie]),0)","v":0},{"$f":"IFERROR(Dane[[#This Row],[Aktuálne obdobie]]/Dane[[#This Row],[Predchádzajúce obdobie]]-1,0)","v":0},{"$f":"IFERROR(Dane[[#This Row],[Aktuálne obdobie]]/Dane[[#This Row],[Rozpočet]]-1,0)","v":0}]
[null,"Iné dane (uveďte)",{"$nulls":5},{"$f":"IFERROR(Dane[[#This Row],[Aktuálne obdobie]]/SUBTOTAL(109,PríjmyZPredaja[Aktuálne obdobie]),0)","v":0},{"$f":"IFERROR(Dane[[#This Row],[Aktuálne obdobie]]/Dane[[#This Row],[Predchádzajúce obdobie]]-1,0)","v":0},{"$f":"IFERROR(Dane[[#This Row],[Aktuálne obdobie]]/Dane[[#This Row],[Rozpočet]]-1,0)","v":0}]
[null,"Celková hodnota",null,{"$f":"SUBTOTAL(109,Dane[Predchádzajúce obdobie])","v":0},{"$f":"SUBTOTAL(109,Dane[Rozpočet])","v":32},{"$f":"SUBTOTAL(109,Dane[Aktuálne obdobie])","v":30},null,{"$f":"IFERROR(Dane[[#Totals],[Aktuálne obdobie]]/SUBTOTAL(109,PríjmyZPredaja[Aktuálne obdobie]),0)","v":{"v":0.6666666666666666,"d":"66.7%"}},{"$f":"IFERROR(Dane[[#Totals],[Aktuálne obdobie]]/Dane[[#Totals],[Predchádzajúce obdobie]]-1,0)","v":0},{"$f":"IFERROR(Dane[[#Totals],[Aktuálne obdobie]]/Dane[[#Totals],[Rozpočet]]-1,0)","v":{"v":-0.0625,"d":"-6.3%"}}]
[]
[null,"Čistý zisk",null,{"$f":"D47+D49-Dane[[#Totals],[Predchádzajúce obdobie]]","v":40},{"$f":"E47+E49-Dane[[#Totals],[Predchádzajúce obdobie]]","v":-45},{"$f":"F47+F49-Dane[[#Totals],[Predchádzajúce obdobie]]","v":-32},null,{"$f":"IFERROR(F58/SUBTOTAL(109,PríjmyZPredaja[Aktuálne obdobie]),0)","v":{"v":-0.7111111111111111,"d":"-71.1%"}},{"$f":"IFERROR(IF(D58=F58,0,IF(F58>D58,ABS((F58/D58)-1),IF(AND(F58<D58,D58<0),-((F58/D58)-1),(F58/D58)-1))),0)","v":{"v":-1.8,"d":"-180.0%"}},{"$f":"IFERROR(IF(E58=F58,0,IF(F58>E58,ABS((F58/E58)-1),IF(AND(F58<E58,E58<0),-((F58/E58)-1),(F58/E58)-1))),0)","v":{"v":0.28888888888888886,"d":"28.9%"}}]
[null,"Hrubý zisk",null,{"$f":"D18/SUM(PríjmyZPredaja[Predchádzajúce obdobie])","v":{"v":1,"d":"100.0%"}},{"$f":"E18/SUM(PríjmyZPredaja[Rozpočet])","v":{"v":0.86,"d":"86.0%"}},{"$f":"F18/SUM(PríjmyZPredaja[Aktuálne obdobie])","v":{"v":0.8444444444444444,"d":"84.4%"}}]
[null,"Návratnosť predaja",null,{"$f":"D58/SUM(PríjmyZPredaja[Predchádzajúce obdobie])","v":{"v":1,"d":"100.0%"}},{"$f":"E58/SUM(PríjmyZPredaja[Rozpočet])","v":{"v":-0.9,"d":"-90.0%"}},{"$f":"F58/SUM(PríjmyZPredaja[Aktuálne obdobie])","v":{"v":-0.7111111111111111,"d":"-71.1%"}}]